fUST/lending_fUST_20250623
["ID","MTS","AMOUNT","RATE_DAILY","PERIOD"]
[367058721,1750639885213,-151.0,0.00023561,7]
[367058722,1750639885222,-460.0,0.00023561,2]
[367058723,1750639885231,-521.58,0.00023561,2]
[367058724,1750639885240,-724.19,0.00023561,2]
[367058725,1750639885249,-211.792391,0.00023561,7]
[367058726,1750639885259,-211.792391,0.00023561,7]
[367058727,1750639885268,-1261.66,0.00023561,2]
[367058728,1750639885277,-644.37,0.00023561,2]
[367058729,1750639885286,-802.53,0.00023561,2]
[367058730,1750639885295,-623.73,0.00023561,2]
[367058731,1750639885304,-4838.813295,0.00023561,7]
[367058732,1750639885314,-4838.813295,0.00023561,7]
[367058733,1750639885323,-460.0,0.00023561,2]
[367058734,1750639885332,-410.19102739,0.00023561,2]
[367058735,1750639885341,-393.72620472,0.00023561,2]
[367058736,1750639886409,-460.0,0.00021917,2]
[367058737,1750639886419,-460.0,0.00021917,2]
[367058738,1750639886428,-460.0,0.00021917,2]
[367058739,1750639886437,-460.0,0.00021917,2]
[367058740,1750639886447,-460.0,0.00021917,2]
[367058741,1750639886456,-460.0,0.00021917,2]
[367058742,1750639886465,-430.0,0.00021917,2]
[367058743,1750639886474,-460.0,0.00021917,2]
[367058744,1750639886485,-460.0,0.00022191,2]
[367058745,1750639886494,-460.0,0.00022191,2]
[367058746,1750639886504,-460.0,0.00022191,2]
[367058747,1750639886513,-460.0,0.00022191,2]
[367058748,1750639886522,-508.01,0.00022191,2]
[367058749,1750639886532,-460.0,0.00022465,2]
[367058750,1750639886541,-460.0,0.00022465,2]
[367058751,1750639886551,-460.0,0.00022465,2]
[367058752,1750639886561,-460.0,0.00022465,2]
[367058753,1750639886571,-460.0,0.00022739,2]
[367058754,1750639886580,-460.0,0.00022739,2]
[367058755,1750639886590,-846.39664074,0.00022739,7]
[367058756,1750639886599,-460.0,0.00022739,2]
[367058757,1750639886609,-460.0,0.00022739,2]
[367058758,1750639886619,-460.0,0.00022739,2]
[367058759,1750639886629,-460.0,0.00023013,2]
[367058760,1750639886641,-460.0,0.00023013,2]
[367058761,1750639886650,-460.0,0.00023013,2]
[367058762,1750639886659,-460.0,0.00023013,2]
[367058763,1750639886669,-460.0,0.00023287,2]
[367058764,1750639886678,-460.0,0.00023287,2]
[367058765,1750639886687,-460.0,0.00023287,2]
[367058766,1750639886697,-460.0,0.00023287,2]
[367058767,1750639886707,-66.27379528,0.00023561,2]
[367058768,1750639886716,-151.0,0.00023561,7]
[367058769,1750639886725,-460.0,0.00023561,2]
[367058770,1750639886734,-460.0,0.00023561,2]
[367058771,1750639886743,-460.0,0.00023561,2]
[367058772,1750639886753,-1354.6,0.00023561,2]
[367058773,1750639886762,-460.0,0.00023561,2]
[367058774,1750639886772,-460.0,0.00023561,2]
[367058775,1750639886782,-449.63605014,0.00023561,2]
[367058776,1750639886791,-460.0,0.00023561,2]
[367058777,1750639886801,-336.57959495,0.00023561,2]
[367058778,1750639886810,-460.0,0.00023561,2]
[367058779,1750639886820,-460.0,0.00023561,2]
[367058780,1750639886829,-460.0,0.00023561,2]
[367058781,1750639886839,-512.40573336,0.00023561,2]
[367058782,1750639886847,-460.0,0.00023561,2]
[367058783,1750639886857,-444.1738649,0.00023561,2]
[367058784,1750639886866,-460.0,0.00023561,2]
[367058785,1750639886875,-460.0,0.00023561,2]
[367058786,1750639886884,-177.58599281,0.00023561,2]
[367058787,1750639886893,-460.0,0.00023561,2]
[367058788,1750639886901,-460.0,0.00023561,2]
[367058789,1750639886911,-151.0,0.00023561,7]
[367058790,1750639886920,-1019.2,0.00023561,2]
[367058791,1750639886929,-460.0,0.00023561,2]
[367058792,1750639886938,-460.0,0.00023561,2]
[367058793,1750639886947,-460.0,0.00023561,2]
[367058794,1750639886957,-460.0,0.00023561,2]
[367058795,1750639886966,-460.0,0.00023561,2]
[367058796,1750639886975,-460.0,0.00023561,2]
[367058797,1750639886984,-460.0,0.00023561,2]
[367058798,1750639886993,-460.0,0.00023561,2]
[367058799,1750639887002,-277.695013,0.00023561,7]
[367058800,1750639887011,-494.89,0.00023561,2]
[367058801,1750639887020,-277.695013,0.00023561,7]
[367058802,1750639887029,-460.0,0.00023561,2]
[367058803,1750639887038,-460.0,0.00023561,2]
[367058804,1750639887048,-460.0,0.00023561,2]
[367058805,1750639887058,-460.0,0.00023561,2]
[367058806,1750639887068,-460.0,0.00023561,2]
[367058807,1750639887077,-294.15396467,0.00023561,2]
[367058808,1750639887087,-652.66,0.00023561,2]
[367058809,1750639887097,-460.0,0.00023561,2]
[367058810,1750639887108,-460.0,0.00023561,2]
[367058811,1750639887118,-151.0,0.00023561,7]
[367058812,1750639887128,-624.55,0.00023561,2]
[367058813,1750639887139,-200.0,0.00023561,2]
[367058814,1750639887148,-200.0,0.00023561,2]
[367058815,1750639887157,-200.0,0.00023561,2]
[367058816,1750639887167,-200.0,0.00023561,2]
[367058817,1750639887178,-200.0,0.00023561,2]
[367058818,1750639887187,-200.0,0.00023561,2]
[367058819,1750639887196,-200.0,0.00023561,2]
[367058820,1750639887206,-395.623205,0.00023561,7]
[367058821,1750639887215,-460.0,0.00023561,2]
[367058822,1750639887225,-395.623205,0.00023561,7]
[367058823,1750639887235,-969.13,0.00023561,2]
[367058824,1750639887245,-489.31,0.00023561,2]
[367058825,1750639887256,-460.0,0.00023561,2]
[367058826,1750639887265,-460.0,0.00023561,2]
[367058827,1750639887274,-409.312054,0.00023561,7]
[367058828,1750639887283,-460.0,0.00023561,2]
[367058829,1750639887292,-409.312054,0.00023561,7]
[367058830,1750639887301,-1215.8,0.00023561,2]
[367058831,1750639887311,-481.76,0.00023561,2]
[367058832,1750639887319,-521.74,0.00023561,2]
[367058833,1750639887328,-733.87,0.00023561,2]
[367058834,1750639887339,-695.13,0.00023561,2]
[367058835,1750639887348,-460.0,0.00023561,2]
[367058836,1750639887359,-460.0,0.00023561,2]
[367058837,1750639887368,-493.8,0.00023561,2]
[367058838,1750639887378,-460.0,0.00023561,2]
[367058839,1750639887387,-460.0,0.00023561,2]
[367058840,1750639887396,-460.0,0.00023561,2]
[367058841,1750639887405,-515.87976678,0.00023561,2]
[367058842,1750639887416,-460.0,0.00023561,2]
[367058843,1750639887426,-717.48,0.00023561,2]
[367058844,1750639887436,-460.0,0.00023561,2]
[367058845,1750639887446,-575.94,0.00023561,2]
[367058846,1750639887456,-942.448665,0.00023561,7]
[367058847,1750639887466,-460.0,0.00023561,2]
[367058848,1750639887476,-460.0,0.00023561,2]
[367058849,1750639887485,-942.448665,0.00023561,7]
[367058850,1750639887496,-341.98892982,0.00023561,2]
[367058851,1750639887506,-151.0,0.00023561,7]
[367058852,1750639887515,-460.0,0.00023561,2]
[367058853,1750639887525,-575.61,0.00023561,2]
[367058854,1750639887534,-157.374948,0.00023561,7]
[367058855,1750639887543,-460.0,0.00023561,2]
[367058856,1750639887553,-460.0,0.00023561,2]
[367058857,1750639887564,-159.92039952,0.00023561,2]
[367058858,1750639887573,-573.96105758,0.00023561,2]
[367058859,1750639887583,-460.0,0.00023561,2]
[367058860,1750639887592,-463.36708833,0.00023561,2]
[367058861,1750639887602,-460.0,0.00023561,2]
[367058862,1750639887613,-580.28,0.00023561,2]
[367058863,1750639887623,-971.13,0.00023561,2]
[367058864,1750639887633,-460.0,0.00023561,2]
[367058865,1750639887643,-315.68217646,0.00023561,2]
[367058866,1750639887653,-460.0,0.00023561,2]
[367058867,1750639887662,-460.0,0.00023561,2]
[367058868,1750639887671,-542.21,0.00023561,2]
[367058869,1750639887681,-303.66813442,0.00023561,2]
[367058870,1750639887691,-462.93,0.00023561,2]
[367058871,1750639887700,-460.0,0.00023561,2]
[367058872,1750639887710,-302.77446442,0.00023561,2]
[367058873,1750639887720,-460.0,0.00023561,2]
[367058874,1750639887729,-151.0,0.00023561,7]
[367058875,1750639887739,-151.0,0.00023561,7]
[367058876,1750639887749,-460.0,0.00023561,2]
[367058877,1750639887759,-500.0,0.00023561,2]
[367058878,1750639887768,-460.0,0.00023561,2]
[367058879,1750639887778,-647.88,0.00023561,2]
[367058880,1750639887788,-652.67,0.00023561,2]
[367058881,1750639887797,-975.0,0.00023561,2]
[367058882,1750639887806,-963.32,0.00023561,2]
[367058883,1750639887815,-278.488901,0.00023561,7]
[367058884,1750639887958,-460.0,0.00023561,2]
[367058885,1750639887968,-278.488901,0.00023561,7]
[367058886,1750639887977,-1615.31,0.00023561,2]
[367058887,1750639887986,-460.0,0.00023561,2]
[367058888,1750639887995,-460.0,0.00023561,2]
[367058889,1750639888005,-712.252841,0.00023561,7]
[367058890,1750639888015,-460.0,0.00023561,2]
[367058891,1750639888024,-1308.56,0.00023561,2]
[367058892,1750639888033,-460.0,0.00023561,2]
[367058893,1750639888043,-712.252841,0.00023561,7]
[367058894,1750639888052,-460.0,0.00023561,2]
[367058895,1750639888061,-1149.69,0.00023561,2]
[367058896,1750639888070,-460.0,0.00023561,2]
[367058897,1750639888079,-352.70176802,0.00023561,2]
[367058898,1750639888088,-460.0,0.00023561,2]
[367058899,1750639888097,-460.0,0.00023561,2]
[367058900,1750639888106,-460.0,0.00023561,2]
[367058901,1750639888115,-1162.67,0.00023561,2]
[367058902,1750639888124,-733.82,0.00023561,2]
[367058903,1750639888133,-589.76,0.00023561,2]
[367058904,1750639888142,-703.04,0.00023561,2]
[367058905,1750639888151,-460.0,0.00023561,2]
[367058906,1750639888160,-460.0,0.00023561,2]
[367058907,1750639888169,-1388.78,0.00023561,2]
[367058908,1750639888180,-1207.94,0.00023561,2]
[367058909,1750639888189,-795.21,0.00023561,2]
[367058910,1750639888202,-470.70700641,0.00023561,2]
[367058911,1750639888211,-460.0,0.00023561,2]
[367058912,1750639888220,-460.0,0.00023561,2]
[367058913,1750639888229,-825.13,0.00023561,2]
[367058914,1750639888240,-460.0,0.00023561,2]
[367058915,1750639888250,-460.0,0.00023561,2]
[367058916,1750639888259,-460.0,0.00023561,2]
[367058917,1750639888268,-2488.34,0.00023561,2]
[367058918,1750639888278,-625.86,0.00023561,2]
[367058919,1750639888287,-460.0,0.00023561,2]
[367058920,1750639888296,-641.12,0.00023561,2]
[367058921,1750639888305,-460.0,0.00023561,2]
[367058922,1750639888314,-958.86,0.00023561,2]
[367058923,1750639888324,-460.0,0.00023561,2]
[367058924,1750639888333,-752.46,0.00023561,2]
[367058925,1750639888343,-614.27,0.00023561,2]
[367058926,1750639888352,-460.0,0.00023561,2]
[367058927,1750639888362,-1769.62,0.00023561,2]
[367058928,1750639888371,-460.0,0.00023561,2]
[367058929,1750639888381,-1144.09,0.00023561,2]
[367058930,1750639888390,-460.0,0.00023561,2]
[367058931,1750639888400,-232.319353,0.00023561,7]
[367058932,1750639888409,-960.82,0.00023561,2]
[367058933,1750639888419,-1002.89,0.00023561,2]
[367058934,1750639888429,-614.93,0.00023561,2]
[367058935,1750639888438,-232.319353,0.00023561,7]
[367058936,1750639888448,-575.42,0.00023561,2]
[367058937,1750639888457,-460.0,0.00023561,2]
[367058938,1750639888466,-2612.949413,0.00023561,7]
[367058939,1750639888475,-616.99,0.00023561,2]
[367058940,1750639888484,-2612.949413,0.00023561,7]
[367058941,1750639888493,-698.5,0.00023561,2]
[367058942,1750639888504,-460.0,0.00023561,2]
[367058943,1750639888513,-460.0,0.00023561,2]
[367058944,1750639888523,-859.09,0.00023561,2]
[367058945,1750639888532,-971.67,0.00023561,2]
[367058946,1750639888540,-1083.29,0.00023561,2]
[367058947,1750639888550,-4023.46,0.00023561,2]
[367058948,1750639888559,-872.55,0.00023561,2]
[367058949,1750639888567,-460.0,0.00023561,2]
[367058950,1750639888577,-784.68,0.00023561,2]
[367058951,1750639888586,-460.0,0.00023561,2]
[367058952,1750639888595,-2728.64,0.00023561,2]
[367058953,1750639888604,-1549.07,0.00023561,2]
[367058954,1750639888614,-1138.65,0.00023561,2]
[367058955,1750639888624,-287.80800468,0.00023561,2]
[367058956,1750639888633,-460.0,0.00023561,2]
[367058957,1750639888643,-940.89,0.00023561,2]
[367058958,1750639888652,-460.0,0.00023561,2]
[367058959,1750639888661,-1308.58,0.00023561,2]
[367058960,1750639888671,-460.0,0.00023561,2]
[367058961,1750639888680,-460.0,0.00023561,2]
[367058962,1750639888689,-2673.76,0.00023561,2]
[367058963,1750639888698,-460.0,0.00023561,2]
[367058964,1750639888708,-1110.27,0.00023561,2]
[367058965,1750639888717,-460.0,0.00023561,2]
[367058966,1750639888726,-460.0,0.00023561,2]
[367058967,1750639888736,-460.0,0.00023561,2]
[367058968,1750639888745,-461.6,0.00023561,2]
[367058969,1750639888755,-460.0,0.00023561,2]
[367058970,1750639888764,-509.75,0.00023561,2]
[367058971,1750639888774,-460.0,0.00023561,2]
[367058972,1750639888783,-460.0,0.00023561,2]
[367058973,1750639888792,-460.0,0.00023561,2]
[367058974,1750639888801,-1734.3,0.00023561,2]
[367058975,1750639888810,-460.0,0.00023561,2]
[367058976,1750639888819,-924.7,0.00023561,2]
[367058977,1750639888829,-460.0,0.00023561,2]
[367058978,1750639888838,-460.0,0.00023561,2]
[367058979,1750639888848,-543.61,0.00023561,2]
[367058980,1750639888857,-2467.5,0.00023561,2]
[367058981,1750639888866,-460.0,0.00023561,2]
[367058982,1750639888876,-460.0,0.00023561,2]
[367058983,1750639888886,-348.039404,0.00023561,7]
[367058984,1750639888895,-460.0,0.00023561,2]
[367058985,1750639888905,-1504.35,0.00023561,2]
[367058986,1750639888915,-348.039404,0.00023561,7]
[367058987,1750639888924,-1578.29,0.00023561,2]
[367058988,1750639888934,-1497.69,0.00023561,2]
[367058989,1750639888943,-460.0,0.00023561,2]
[367058990,1750639888954,-460.0,0.00023561,2]
[367058991,1750639888963,-460.0,0.00023561,2]
[367058992,1750639888973,-662.51,0.00023561,2]
[367058993,1750639888982,-460.0,0.00023561,2]
[367058994,1750639888991,-460.0,0.00023561,2]
[367058995,1750639889000,-606.05,0.00023561,2]
[367058996,1750639889010,-460.0,0.00023561,2]
[367058997,1750639889019,-520.94,0.00023561,2]
[367058998,1750639889029,-151.0,0.00023561,7]
[367058999,1750639889039,-460.0,0.00023561,2]
[367059000,1750639889048,-1603.67,0.00023561,2]
[367059001,1750639889058,-151.0,0.00023561,7]
[367059002,1750639889068,-972.63,0.00023561,2]
[367059003,1750639889077,-566.90037874,0.00023561,2]
[367059004,1750639889087,-460.0,0.00023561,2]
[367059005,1750639889097,-151.0,0.00023561,7]
[367059006,1750639889108,-250.656945,0.00023561,7]
[367059007,1750639889117,-527.86,0.00023561,2]
[367059008,1750639889127,-1405.52,0.00023561,2]
[367059009,1750639889137,-1891.75,0.00023561,2]
[367059010,1750639889146,-460.0,0.00023561,2]
[367059011,1750639889155,-614.19,0.00023561,2]
[367059012,1750639889165,-648.424325,0.00023561,7]
[367059013,1750639889177,-605.14,0.00023561,2]
[367059014,1750639889187,-648.424325,0.00023561,7]
[367059015,1750639889197,-460.0,0.00023561,2]
[367059016,1750639889206,-460.0,0.00023561,2]
[367059017,1750639889216,-460.0,0.00023561,2]
[367059018,1750639889225,-668.56,0.00023561,2]
[367059019,1750639889235,-460.0,0.00023561,2]
[367059020,1750639889243,-460.0,0.00023561,2]
[367059021,1750639889252,-699.73,0.00023561,2]
[367059022,1750639889262,-460.0,0.00023561,2]
[367059023,1750639889271,-1360.06,0.00023561,2]
[367059024,1750639889280,-460.0,0.00023561,2]
[367059025,1750639889290,-529.72,0.00023561,2]
[367059026,1750639889299,-460.0,0.00023561,2]
[367059027,1750639889308,-327.18070142,0.00023561,2]
[367059028,1750639889317,-166.915495,0.00023561,7]
[367059029,1750639889327,-832.9,0.00023561,2]
[367059030,1750639889336,-166.915495,0.00023561,7]
[367059031,1750639889345,-460.0,0.00023561,2]
[367059032,1750639889354,-1781.3,0.00023561,2]
[367059033,1750639889364,-197.827342,0.00023561,7]
[367059034,1750639889373,-197.827342,0.00023561,7]
[367059035,1750639889383,-460.0,0.00023561,2]
[367059036,1750639889392,-238.53028304,0.00023561,2]
[367059037,1750639889401,-460.0,0.00023561,2]
[367059038,1750639889411,-197.827342,0.00023561,7]
[367059039,1750639889420,-197.827342,0.00023561,7]
[367059040,1750639889430,-2036.4,0.00023561,2]
[367059041,1750639889441,-1000.81,0.00023561,2]
[367059042,1750639889450,-557.76,0.00023561,2]
[367059043,1750639889459,-460.0,0.00023561,2]
[367059044,1750639889469,-460.0,0.00023561,2]
[367059045,1750639889478,-759.38,0.00023561,2]
[367059046,1750639889488,-460.98,0.00023561,2]
[367059047,1750639889498,-346.44578676,0.00023561,2]
[367059048,1750639889507,-460.0,0.00023561,2]
[367059049,1750639889517,-460.0,0.00023561,2]
[367059050,1750639889526,-460.0,0.00023561,2]
[367059051,1750639889536,-151.0,0.00023561,7]
[367059052,1750639889545,-746.12,0.00023561,2]
[367059053,1750639889554,-595.78,0.00023561,2]
[367059054,1750639889564,-2294.47,0.00023561,2]
[367059055,1750639889574,-567.97,0.00023561,2]
[367059056,1750639889584,-2664.66,0.00023561,2]
[367059057,1750639889594,-477.65,0.00023561,2]
[367059058,1750639889603,-2395.58,0.00023561,2]
[367059059,1750639889616,-460.0,0.00023561,2]
[367059060,1750639889626,-5283.56,0.00023561,2]
[367059061,1750639889637,-460.0,0.00023561,2]
[367059062,1750639889647,-1183.35,0.00023561,2]
[367059063,1750639889657,-460.0,0.00023561,2]
[367059064,1750639889668,-460.0,0.00023561,2]
[367059065,1750639889678,-460.0,0.00023561,2]
[367059066,1750639889688,-460.0,0.00023561,2]
[367059067,1750639889699,-151.0,0.00023561,7]
[367059068,1750639889710,-460.0,0.00023561,2]
[367059069,1750639889720,-592.01,0.00023561,2]
[367059070,1750639889729,-929.93,0.00023561,2]
[367059071,1750639889739,-460.0,0.00023561,2]
[367059072,1750639889749,-932.24,0.00023561,2]
[367059073,1750639889759,-460.0,0.00023561,2]
[367059074,1750639889769,-460.0,0.00023561,2]
[367059075,1750639889779,-460.0,0.00023561,2]
[367059076,1750639889791,-460.0,0.00023561,2]
[367059077,1750639889800,-519.66,0.00023561,2]
[367059078,1750639889811,-460.0,0.00023561,2]
[367059079,1750639889821,-460.0,0.00023561,2]
[367059080,1750639889831,-1906.75,0.00023561,2]
[367059081,1750639889840,-476.17,0.00023561,2]
[367059082,1750639889849,-460.0,0.00023561,2]
[367059083,1750639889859,-460.0,0.00023561,2]
[367059084,1750639889868,-1055.15,0.00023561,2]
[367059085,1750639889878,-460.0,0.00023561,2]
[367059086,1750639889887,-515.59,0.00023561,2]
[367059087,1750639889896,-460.0,0.00023561,2]
[367059088,1750639889905,-460.0,0.00023561,2]
[367059089,1750639889914,-6574.74,0.00023561,2]
[367059090,1750639889923,-506.07,0.00023561,2]
[367059091,1750639889933,-495.52,0.00023561,2]
[367059092,1750639889942,-460.0,0.00023561,2]
[367059093,1750639889951,-6431.01,0.00023561,2]
[367059094,1750639889960,-460.0,0.00023561,2]
[367059095,1750639889970,-487.62,0.00023561,2]
[367059096,1750639889979,-248.09604341,0.00023561,2]
[367059097,1750639889989,-151.0,0.00023561,7]
[367059098,1750639889998,-460.0,0.00023561,2]
[367059099,1750639890007,-460.0,0.00023561,2]
[367059100,1750639890016,-460.0,0.00023561,2]
[367059101,1750639890153,-387.72556809,0.00023561,2]
[367059102,1750639890163,-635.2,0.00023561,2]
[367059103,1750639890173,-796.06,0.00023561,2]
[367059104,1750639890186,-225.29095177,0.00023561,2]
[367059105,1750639890195,-963.72,0.00023561,2]
[367059106,1750639890205,-6867.71,0.00023561,2]
[367059107,1750639890214,-460.0,0.00023561,2]
[367059108,1750639890225,-1356.4,0.00023561,2]
[367059109,1750639890235,-460.0,0.00023561,2]
[367059110,1750639890244,-460.0,0.00023561,2]
[367059111,1750639890253,-460.0,0.00023561,2]
[367059112,1750639890262,-472.73,0.00023561,2]
[367059113,1750639890272,-460.0,0.00023561,2]
[367059114,1750639890281,-7527.08,0.00023561,2]
[367059115,1750639890291,-556.76,0.00023561,2]
[367059116,1750639890300,-947.43,0.00023561,2]
[367059117,1750639890309,-460.0,0.00023561,2]
[367059118,1750639890318,-2147.72,0.00023561,2]
[367059119,1750639890327,-1976.16,0.00023561,2]
[367059120,1750639890336,-466.93,0.00023561,2]
[367059121,1750639890346,-460.0,0.00023561,2]
[367059122,1750639890355,-460.0,0.00023561,2]
[367059123,1750639890364,-460.0,0.00023561,2]
[367059124,1750639890373,-1007.42,0.00023561,2]
[367059125,1750639890382,-460.0,0.00023561,2]
[367059126,1750639890391,-1339.36,0.00023561,2]
[367059127,1750639890401,-506.99,0.00023561,2]
[367059128,1750639890410,-460.0,0.00023561,2]
[367059129,1750639890419,-844.92,0.00023561,2]
[367059130,1750639890428,-700.86,0.00023561,2]
[367059131,1750639890438,-1393.54,0.00023561,2]
[367059132,1750639890447,-644.35,0.00023561,2]
[367059133,1750639890456,-696.87,0.00023561,2]
[367059134,1750639890465,-1466.03,0.00023561,2]
[367059135,1750639890474,-460.0,0.00023561,2]
[367059136,1750639890483,-460.0,0.00023561,2]
[367059137,1750639890493,-460.0,0.00023561,2]
[367059138,1750639890502,-1276.49,0.00023561,2]
[367059139,1750639890512,-856.36,0.00023561,2]
[367059140,1750639890521,-150.06763191,0.00023561,2]
[367059141,1750639890530,-6054.31,0.00023561,2]
[367059142,1750639890539,-460.0,0.00023561,2]
[367059143,1750639890549,-1034.19,0.00023561,2]
[367059144,1750639890558,-460.0,0.00023561,2]
[367059145,1750639890568,-767.530591,0.00023561,7]
[367059146,1750639890577,-1311.16,0.00023561,2]
[367059147,1750639890586,-460.0,0.00023561,2]
[367059148,1750639890596,-3354.9,0.00023561,2]
[367059149,1750639890605,-767.530593,0.00023561,7]
[367059150,1750639890615,-460.0,0.00023561,2]
[367059151,1750639890625,-1354.33,0.00023561,2]
[367059152,1750639890635,-152.7039932,0.00023561,2]
[367059153,1750639890644,-371.89917646,0.00023561,2]
[367059154,1750639890653,-460.0,0.00023561,2]
[367059155,1750639890662,-4641.53,0.00023561,2]
[367059156,1750639890672,-460.0,0.00023561,2]
[367059157,1750639890681,-3656.674394,0.00023561,7]
[367059158,1750639890690,-151.0,0.00023561,7]
[367059159,1750639890700,-460.0,0.00023561,2]
[367059160,1750639890710,-4104.92,0.00023561,2]
[367059161,1750639890720,-3656.6744,0.00023561,7]
[367059162,1750639890730,-1282.89,0.00023561,2]
[367059163,1750639890739,-1084.49,0.00023561,2]
[367059164,1750639890749,-951.08,0.00023561,2]
[367059165,1750639890759,-808.72,0.00023561,2]
[367059166,1750639890769,-1652.51,0.00023561,2]
[367059167,1750639890778,-460.0,0.00023561,2]
[367059168,1750639890788,-460.0,0.00023561,2]
[367059169,1750639890797,-460.0,0.00023561,2]
[367059170,1750639890807,-2661.47,0.00023561,2]
[367059171,1750639890817,-460.0,0.00023561,2]
[367059172,1750639890827,-460.0,0.00023561,2]
[367059173,1750639890839,-20679.38,0.00023561,2]
[367059174,1750639890848,-460.0,0.00023561,2]
[367059175,1750639890858,-555.81,0.00023561,2]
[367059176,1750639890868,-489.02,0.00023561,2]
[367059177,1750639890877,-460.0,0.00023561,2]
[367059178,1750639890886,-1034.81,0.00023561,2]
[367059179,1750639890896,-4985.08,0.00023561,2]
[367059180,1750639890906,-460.0,0.00023561,2]
[367059181,1750639890916,-460.0,0.00023561,2]
[367059182,1750639890925,-3125.15,0.00023561,2]
[367059183,1750639890935,-460.0,0.00023561,2]
[367059184,1750639890945,-2766.56,0.00023561,2]
[367059185,1750639890954,-1439.84,0.00023561,2]
[367059186,1750639890964,-460.0,0.00023561,2]
[367059187,1750639890973,-460.0,0.00023561,2]
[367059188,1750639890983,-871.07,0.00023561,2]
[367059189,1750639890992,-2068.54,0.00023561,2]
[367059190,1750639891002,-1006.17,0.00023561,2]
[367059191,1750639891011,-460.0,0.00023561,2]
[367059192,1750639891021,-460.0,0.00023561,2]
[367059193,1750639891030,-489.87,0.00023561,2]
[367059194,1750639891039,-460.0,0.00023561,2]
[367059195,1750639891049,-301.84256585,0.00023561,2]
[367059196,1750639891059,-2356.32,0.00023561,2]
[367059197,1750639891068,-460.0,0.00023561,2]
[367059198,1750639891078,-790.32,0.00023561,2]
[367059199,1750639891088,-460.0,0.00023561,2]
[367059200,1750639891099,-5865.65,0.00023561,2]
[367059201,1750639891111,-568.34,0.00023561,2]
[367059202,1750639891122,-889.68,0.00023561,2]
[367059203,1750639891132,-460.0,0.00023561,2]
[367059204,1750639891145,-460.0,0.00023561,2]
[367059205,1750639891155,-460.0,0.00023561,2]
[367059206,1750639891165,-956.65,0.00023561,2]
[367059207,1750639891176,-584.14,0.00023561,2]
[367059208,1750639891186,-3438.1,0.00023561,2]
[367059209,1750639891199,-3587.65,0.00023561,2]
[367059210,1750639891209,-460.0,0.00023561,2]
[367059211,1750639891218,-1304.62752,0.00023561,7]
[367059212,1750639891228,-492.8,0.00023561,2]
[367059213,1750639891241,-1741.26,0.00023561,2]
[367059214,1750639891254,-6645.19,0.00023561,2]
[367059215,1750639891264,-698.82,0.00023561,2]
[367059216,1750639891275,-672.16,0.00023561,2]
[367059217,1750639891286,-1304.627525,0.00023561,7]
[367059218,1750639891295,-1311.87,0.00023561,2]
[367059219,1750639891304,-574.19,0.00023561,2]
[367059220,1750639891314,-666.75,0.00023561,2]